[Event "Titled Tuesday Blitz November 29 Late 2022"]
[White "Quesada Perez, Yuniesky"]
[Black "Sadhwani, Raunak"]
[WhiteFideId "3504409"]
[BlackFideId "35093487"]
[WhiteElo "2599"]
[BlackElo "2656"]
[Result "0-1"]
[Round "10"]
[TimeControl "180+1"]
[Date "2022.11.30"]
[WhiteClock "0:00:18"]
[BlackClock "0:01:27"]

1. e4 {[%clk 0:03:00]}  c6 {[%clk 0:02:59]} 2. d4 {[%clk 0:03:00]}  d5 {[%clk 0:03:00]} 3. e5 {[%clk 0:03:00]}  Bf5 {[%clk 0:03:00]} 4. Nd2 {[%clk 0:03:01]}  e6 {[%clk 0:02:59]} 5. Nb3 {[%clk 0:03:01]}  Nd7 {[%clk 0:02:59]} 6. Nf3 {[%clk 0:03:01]}  Ne7 {[%clk 0:02:58]} 7. Be2 {[%clk 0:03:01]}  h6 {[%clk 0:02:58]} 8. O-O {[%clk 0:03:01]}  Qc7 {[%clk 0:02:58]} 9. Bd2 {[%clk 0:03:00]}  Bh7 {[%clk 0:02:57]} 10. Ba5 {[%clk 0:03:00]}  b6 {[%clk 0:02:57]} 11. Bd2 {[%clk 0:02:59]}  Nf5 {[%clk 0:02:50]} 12. c4 {[%clk 0:02:58]}  dxc4 {[%clk 0:02:49]} 13. Bxc4 {[%clk 0:02:57]}  Be7 {[%clk 0:02:49]} 14. Rc1 {[%clk 0:02:57]}  O-O {[%clk 0:02:42]} 15. Bd3 {[%clk 0:02:56]}  Rac8 {[%clk 0:02:33]} 16. Qc2 {[%clk 0:02:48]}  h5 {[%clk 0:02:24]} 17. Bg5 {[%clk 0:02:44]}  Bg6 {[%clk 0:02:23]} 18. Qd2 {[%clk 0:02:13]}  Qd8 {[%clk 0:02:20]} 19. Rfe1 {[%clk 0:01:57]}  c5 {[%clk 0:02:17]} 20. Bxe7 {[%clk 0:01:51]}  Qxe7 {[%clk 0:02:16]} 21. Ba6 {[%clk 0:01:37]}  Rcd8 {[%clk 0:02:12]} 22. Qf4 {[%clk 0:01:34]}  cxd4 {[%clk 0:01:51]} 23. Nbxd4 {[%clk 0:01:35]}  Nxd4 {[%clk 0:01:49]} 24. Nxd4 {[%clk 0:01:33]}  Qb4 {[%clk 0:01:49]} 25. a3 {[%clk 0:01:25]}  Qxb2 {[%clk 0:01:49]} 26. Nc6 {[%clk 0:01:22]}  Nc5 {[%clk 0:01:48]} 27. Nxd8 {[%clk 0:01:14]}  Rxd8 {[%clk 0:01:49]} 28. Bf1 {[%clk 0:01:12]}  Qxa3 {[%clk 0:01:45]} 29. Red1 {[%clk 0:01:08]}  Rf8 {[%clk 0:01:35]} 30. h3 {[%clk 0:01:08]}  a5 {[%clk 0:01:34]} 31. Rd6 {[%clk 0:00:53]}  Qb2 {[%clk 0:01:29]} 32. Rcd1 {[%clk 0:00:21]}  a4 {[%clk 0:01:29]} 33. Qc1 {[%clk 0:00:21]}  a3 {[%clk 0:01:25]} 34. Qxb2 {[%clk 0:00:18]}  axb2 {[%clk 0:01:26]} 35. Rxb6 {[%clk 0:00:18]}  Na4 {[%clk 0:01:27]} 36. Rb4 {[%clk 0:00:18]}  Nc3 {[%clk 0:01:27]} 0-1


[Site "https://www.chess.com"]

[Event "Titled Tuesday Blitz November 29 Late 2022"]
[White "Remizov, Yaroslav"]
[Black "Radjabov, Teimour"]
[WhiteFideId "34134015"]
[BlackFideId "13400924"]
[WhiteElo "2414"]
[BlackElo "2709"]
[Result "1-0"]
[Round "10"]
[TimeControl "180+1"]
[Date "2022.11.30"]
[WhiteClock "0:00:01"]
[BlackClock "0:00:10"]

1. e4 {[%clk 0:02:56]}  e5 {[%clk 0:02:58]} 2. Nf3 {[%clk 0:02:56]}  Nc6 {[%clk 0:02:59]} 3. Nc3 {[%clk 0:02:56]}  Nf6 {[%clk 0:02:58]} 4. Be2 {[%clk 0:02:57]}  Bb4 {[%clk 0:02:57]} 5. Nd5 {[%clk 0:02:57]}  Bc5 {[%clk 0:02:58]} 6. Nxe5 {[%clk 0:02:48]}  Nxe4 {[%clk 0:02:54]} 7. Nd3 {[%clk 0:02:28]}  O-O {[%clk 0:02:45]} 8. Nxc5 {[%clk 0:02:11]}  Nxc5 {[%clk 0:02:44]} 9. O-O {[%clk 0:02:11]}  d6 {[%clk 0:02:43]} 10. d4 {[%clk 0:02:10]}  Ne4 {[%clk 0:02:43]} 11. Bf3 {[%clk 0:02:07]}  Bf5 {[%clk 0:02:37]} 12. c3 {[%clk 0:02:03]}  Qd7 {[%clk 0:02:33]} 13. Qb3 {[%clk 0:01:45]}  Rab8 {[%clk 0:02:28]} 14. Bf4 {[%clk 0:01:37]}  Rfe8 {[%clk 0:02:28]} 15. Rfe1 {[%clk 0:01:36]}  b5 {[%clk 0:02:08]} 16. Qc2 {[%clk 0:00:41]}  Ng5 {[%clk 0:01:59]} 17. Rxe8+ {[%clk 0:00:41]}  Rxe8 {[%clk 0:01:58]} 18. Nf6+ {[%clk 0:00:41]}  gxf6 {[%clk 0:01:42]} 19. Bxc6 {[%clk 0:00:42]}  Qxc6 {[%clk 0:01:43]} 20. Qxf5 {[%clk 0:00:41]}  Qe4 {[%clk 0:01:44]} 21. Qxe4 {[%clk 0:00:37]}  Rxe4 {[%clk 0:01:43]} 22. Be3 {[%clk 0:00:35]}  Ne6 {[%clk 0:01:13]} 23. Kf1 {[%clk 0:00:28]}  f5 {[%clk 0:01:12]} 24. a4 {[%clk 0:00:24]}  b4 {[%clk 0:01:11]} 25. cxb4 {[%clk 0:00:24]}  Nxd4 {[%clk 0:01:10]} 26. Rc1 {[%clk 0:00:19]}  Ne6 {[%clk 0:01:09]} 27. Bd2 {[%clk 0:00:14]}  Rd4 {[%clk 0:00:30]} 28. Bc3 {[%clk 0:00:14]}  Rd5 {[%clk 0:00:30]} 29. b5 {[%clk 0:00:12]}  Nc5 {[%clk 0:00:29]} 30. a5 {[%clk 0:00:04]}  Nb3 {[%clk 0:00:29]} 31. Re1 {[%clk 0:00:05]}  Kf8 {[%clk 0:00:28]} 32. b6 {[%clk 0:00:02]}  axb6 {[%clk 0:00:28]} 33. axb6 {[%clk 0:00:03]}  cxb6 {[%clk 0:00:28]} 34. g3 {[%clk 0:00:04]}  Nd2+ {[%clk 0:00:25]} 35. Bxd2 {[%clk 0:00:02]}  Rxd2 {[%clk 0:00:25]} 36. Rb1 {[%clk 0:00:02]}  Ke7 {[%clk 0:00:24]} 37. Kg2 {[%clk 0:00:02]}  Ke6 {[%clk 0:00:24]} 38. Kf3 {[%clk 0:00:03]}  Kd5 {[%clk 0:00:23]} 39. Ke3 {[%clk 0:00:03]}  Rc2 {[%clk 0:00:23]} 40. Rd1+ {[%clk 0:00:03]}  Kc6 {[%clk 0:00:20]} 41. b4 {[%clk 0:00:03]}  Rc4 {[%clk 0:00:19]} 42. b5+ {[%clk 0:00:03]}  Kc5 {[%clk 0:00:19]} 43. f3 {[%clk 0:00:03]}  d5 {[%clk 0:00:18]} 44. h4 {[%clk 0:00:03]}  h5 {[%clk 0:00:17]} 45. Ra1 {[%clk 0:00:02]}  f4+ {[%clk 0:00:10]} 46. gxf4 {[%clk 0:00:02]}  Rc3+ {[%clk 0:00:11]} 47. Kf2 {[%clk 0:00:02]}  Kxb5 {[%clk 0:00:11]} 48. Ra7 {[%clk 0:00:03]}  f6 {[%clk 0:00:11]} 49. Rh7 {[%clk 0:00:02]}  Kc4 {[%clk 0:00:11]} 50. Rxh5 {[%clk 0:00:03]}  b5 {[%clk 0:00:11]} 51. Rh8 {[%clk 0:00:03]}  Kd3 {[%clk 0:00:11]} 52. h5 {[%clk 0:00:04]}  Rc7 {[%clk 0:00:11]} 53. Rb8 {[%clk 0:00:03]}  Kc4 {[%clk 0:00:10]} 54. Kg3 {[%clk 0:00:02]}  Rg7+ {[%clk 0:00:10]} 55. Kf2 {[%clk 0:00:02]}  Rh7 {[%clk 0:00:10]} 56. f5 {[%clk 0:00:01]}  Rxh5 {[%clk 0:00:10]} 57. Rc8+ {[%clk 0:00:02]}  Kd4 {[%clk 0:00:10]} 58. Rb8 {[%clk 0:00:01]} 1-0


[Site "https://www.chess.com"]

[Event "Titled Tuesday Blitz November 29 Late 2022"]
[White "Rios Escobar, Adan"]
[Black "Jimenez, Joaquin"]
[WhiteFideId "3403645"]
[BlackFideId "109860"]
[WhiteElo "2305"]
[BlackElo "2163"]
[Result "0-1"]
[Round "10"]
[TimeControl "180+1"]
[Date "2022.11.30"]
[WhiteClock "0:00:02"]
[BlackClock "0:00:41"]

1. d4 {[%clk 0:03:00]}  Nf6 {[%clk 0:02:59]} 2. g3 {[%clk 0:02:55]}  g6 {[%clk 0:02:58]} 3. Bg2 {[%clk 0:02:55]}  Bg7 {[%clk 0:02:58]} 4. e4 {[%clk 0:02:55]}  d6 {[%clk 0:02:55]} 5. Ne2 {[%clk 0:02:56]}  O-O {[%clk 0:02:54]} 6. O-O {[%clk 0:02:56]}  e5 {[%clk 0:02:53]} 7. Nbc3 {[%clk 0:02:57]}  Nc6 {[%clk 0:02:50]} 8. dxe5 {[%clk 0:02:55]}  dxe5 {[%clk 0:02:48]} 9. Bg5 {[%clk 0:02:55]}  Be6 {[%clk 0:02:43]} 10. Nd5 {[%clk 0:02:53]}  Bxd5 {[%clk 0:02:30]} 11. exd5 {[%clk 0:02:54]}  Ne7 {[%clk 0:02:30]} 12. c4 {[%clk 0:02:52]}  h6 {[%clk 0:02:26]} 13. Bxf6 {[%clk 0:02:52]}  Bxf6 {[%clk 0:02:26]} 14. c5 {[%clk 0:02:43]}  Bg7 {[%clk 0:02:21]} 15. Rc1 {[%clk 0:02:41]}  Nf5 {[%clk 0:02:14]} 16. Qd3 {[%clk 0:02:15]}  Nd4 {[%clk 0:02:09]} 17. Nxd4 {[%clk 0:02:14]}  exd4 {[%clk 0:02:09]} 18. d6 {[%clk 0:02:00]}  cxd6 {[%clk 0:02:08]} 19. Bxb7 {[%clk 0:01:58]}  Rb8 {[%clk 0:02:08]} 20. c6 {[%clk 0:01:54]}  Qc7 {[%clk 0:02:08]} 21. Rfe1 {[%clk 0:01:35]}  Be5 {[%clk 0:01:55]} 22. b4 {[%clk 0:01:28]}  Kg7 {[%clk 0:01:51]} 23. b5 {[%clk 0:01:25]}  Rfe8 {[%clk 0:01:41]} 24. a4 {[%clk 0:01:22]}  Re7 {[%clk 0:01:37]} 25. Re4 {[%clk 0:01:16]}  Rxb7 {[%clk 0:01:28]} 26. f4 {[%clk 0:00:29]}  Bf6 {[%clk 0:01:21]} 27. Rxe7 {[%clk 0:00:26]}  Bxe7 {[%clk 0:01:21]} 28. Re1 {[%clk 0:00:07]}  Rb8 {[%clk 0:01:18]} 29. Qxd4+ {[%clk 0:00:07]}  Bf6 {[%clk 0:01:18]} 30. Qd5 {[%clk 0:00:08]}  a6 {[%clk 0:01:11]} 31. Kg2 {[%clk 0:00:07]}  axb5 {[%clk 0:01:10]} 32. axb5 {[%clk 0:00:08]}  Qb6 {[%clk 0:01:03]} 33. Rb1 {[%clk 0:00:07]}  Ra8 {[%clk 0:00:56]} 34. Qxd6 {[%clk 0:00:06]}  Ra2+ {[%clk 0:00:55]} 35. Kh3 {[%clk 0:00:06]}  Qf2 {[%clk 0:00:54]} 36. Qd5 {[%clk 0:00:01]}  Qxh2+ {[%clk 0:00:52]} 37. Kg4 {[%clk 0:00:02]}  Qe2+ {[%clk 0:00:44]} 38. Kh3 {[%clk 0:00:01]}  Qh2+ {[%clk 0:00:41]} 39. Kg4 {[%clk 0:00:02]}  h5+ {[%clk 0:00:41]} 40. Kf3 {[%clk 0:00:02]}  Qe2# {[%clk 0:00:41]} 0-1


[Site "https://www.chess.com"]

[Event "Titled Tuesday Blitz November 29 Late 2022"]
[White "Risteski, Emil"]
[Black "Zhigalko, Sergei"]
[WhiteFideId "15005267"]
[BlackFideId "13502956"]
[WhiteElo "2251"]
[BlackElo "2662"]
[Result "0-1"]
[Round "10"]
[TimeControl "180+1"]
[Date "2022.11.30"]
[WhiteClock "0:00:04"]
[BlackClock "0:00:06"]

1. e4 {[%clk 0:03:00]}  c5 {[%clk 0:02:57]} 2. Nc3 {[%clk 0:03:00]}  Nc6 {[%clk 0:02:57]} 3. f4 {[%clk 0:03:01]}  g6 {[%clk 0:02:58]} 4. Nf3 {[%clk 0:03:01]}  Bg7 {[%clk 0:02:58]} 5. Bb5 {[%clk 0:03:02]}  Nd4 {[%clk 0:02:59]} 6. O-O {[%clk 0:03:01]}  a6 {[%clk 0:02:59]} 7. Bc4 {[%clk 0:03:01]}  e6 {[%clk 0:02:52]} 8. d3 {[%clk 0:02:59]}  Ne7 {[%clk 0:02:50]} 9. Nxd4 {[%clk 0:02:58]}  cxd4 {[%clk 0:02:50]} 10. Ne2 {[%clk 0:02:57]}  d5 {[%clk 0:02:51]} 11. Bb3 {[%clk 0:02:56]}  dxe4 {[%clk 0:02:44]} 12. dxe4 {[%clk 0:02:56]}  O-O {[%clk 0:02:44]} 13. Qd3 {[%clk 0:02:50]}  Qb6 {[%clk 0:02:29]} 14. Rd1 {[%clk 0:02:37]}  Rd8 {[%clk 0:02:26]} 15. Bd2 {[%clk 0:02:36]}  Bd7 {[%clk 0:02:25]} 16. a4 {[%clk 0:02:35]}  Rac8 {[%clk 0:02:23]} 17. Be1 {[%clk 0:02:23]}  Nc6 {[%clk 0:01:50]} 18. Bf2 {[%clk 0:02:20]}  e5 {[%clk 0:01:50]} 19. fxe5 {[%clk 0:01:27]}  Bg4 {[%clk 0:01:46]} 20. e6 {[%clk 0:01:21]}  fxe6 {[%clk 0:01:42]} 21. h3 {[%clk 0:01:16]}  Ne5 {[%clk 0:01:33]} 22. Qd2 {[%clk 0:01:15]}  Bxe2 {[%clk 0:01:31]} 23. Qxe2 {[%clk 0:01:15]}  Kh8 {[%clk 0:01:27]} 24. Kh1 {[%clk 0:01:10]}  Qb4 {[%clk 0:01:23]} 25. a5 {[%clk 0:01:09]}  d3 {[%clk 0:01:22]} 26. Qd2 {[%clk 0:01:06]}  Qxd2 {[%clk 0:01:18]} 27. Rxd2 {[%clk 0:01:06]}  dxc2 {[%clk 0:01:19]} 28. Rxd8+ {[%clk 0:00:57]}  Rxd8 {[%clk 0:01:17]} 29. Rc1 {[%clk 0:00:57]}  Rd1+ {[%clk 0:00:29]} 30. Rxd1 {[%clk 0:00:56]}  cxd1=Q+ {[%clk 0:00:30]} 31. Bxd1 {[%clk 0:00:57]}  Nc6 {[%clk 0:00:24]} 32. Bg4 {[%clk 0:00:34]}  Bxb2 {[%clk 0:00:06]} 33. Bxe6 {[%clk 0:00:33]}  Nxa5 {[%clk 0:00:05]} 34. Bb6 {[%clk 0:00:30]}  Bc3 {[%clk 0:00:02]} 35. Bc8 {[%clk 0:00:29]}  Nc4 {[%clk 0:00:02]} 36. Bf2 {[%clk 0:00:22]}  Nd6 {[%clk 0:00:02]} 37. Be6 {[%clk 0:00:18]}  Nxe4 {[%clk 0:00:02]} 38. Bb6 {[%clk 0:00:16]}  Be5 {[%clk 0:00:02]} 39. Bd5 {[%clk 0:00:16]}  Nd6 {[%clk 0:00:03]} 40. Bc7 {[%clk 0:00:13]}  b5 {[%clk 0:00:03]} 41. Kg1 {[%clk 0:00:07]}  Nc4 {[%clk 0:00:03]} 42. Bd8 {[%clk 0:00:05]}  Kg7 {[%clk 0:00:03]} 43. Kf2 {[%clk 0:00:05]}  Bd4+ {[%clk 0:00:02]} 44. Ke2 {[%clk 0:00:05]}  Bf6 {[%clk 0:00:03]} 45. Bc7 {[%clk 0:00:04]}  Be5 {[%clk 0:00:03]} 46. Bd8 {[%clk 0:00:04]}  Nd6 {[%clk 0:00:03]} 47. Bc7 {[%clk 0:00:03]}  Kf6 {[%clk 0:00:03]} 48. Bxd6 {[%clk 0:00:03]}  Bxd6 {[%clk 0:00:03]} 49. Bb7 {[%clk 0:00:04]}  a5 {[%clk 0:00:03]} 50. Ba6 {[%clk 0:00:05]}  b4 {[%clk 0:00:04]} 51. Bb5 {[%clk 0:00:05]}  Ke5 {[%clk 0:00:04]} 52. Kd3 {[%clk 0:00:03]}  Bc5 {[%clk 0:00:03]} 53. Bc6 {[%clk 0:00:02]}  Kf4 {[%clk 0:00:02]} 54. Kc2 {[%clk 0:00:02]}  Ke3 {[%clk 0:00:01]} 55. Kb3 {[%clk 0:00:03]}  Bb6 {[%clk 0:00:02]} 56. Bd5 {[%clk 0:00:03]}  Kd4 {[%clk 0:00:02]} 57. Bc6 {[%clk 0:00:03]}  h6 {[%clk 0:00:03]} 58. Bb7 {[%clk 0:00:04]}  Bc7 {[%clk 0:00:03]} 59. Bc6 {[%clk 0:00:04]}  Kc5 {[%clk 0:00:03]} 60. Bb7 {[%clk 0:00:05]}  Kb5 {[%clk 0:00:04]} 61. Bc8 {[%clk 0:00:03]}  a4+ {[%clk 0:00:04]} 62. Kc2 {[%clk 0:00:04]}  b3+ {[%clk 0:00:05]} 63. Kb1 {[%clk 0:00:03]}  Kb4 {[%clk 0:00:05]} 64. Be6 {[%clk 0:00:03]}  a3 {[%clk 0:00:06]} 65. Bf7 {[%clk 0:00:04]}  Be5 {[%clk 0:00:06]} 66. Bxb3 {[%clk 0:00:04]}  Kxb3 {[%clk 0:00:06]} 0-1


[Site "https://www.chess.com"]

[Event "Titled Tuesday Blitz November 29 Late 2022"]
[White "Rodriguez Fontecha, Marcos"]
[Black "Seletsky, Grigory"]
[WhiteFideId "2256576"]
[BlackFideId "14112191"]
[WhiteElo "2263"]
[BlackElo "2492"]
[Result "1-0"]
[Round "10"]
[TimeControl "180+1"]
[Date "2022.11.30"]
[WhiteClock "0:00:46"]
[BlackClock "0:00:03"]

1. Nf3 {[%clk 0:03:00]}  d5 {[%clk 0:00:54]} 2. g3 {[%clk 0:02:57]}  c6 {[%clk 0:00:54]} 3. Bg2 {[%clk 0:02:58]}  g6 {[%clk 0:00:54]} 4. O-O {[%clk 0:02:59]}  Bg7 {[%clk 0:00:54]} 5. c4 {[%clk 0:03:00]}  Nf6 {[%clk 0:00:53]} 6. cxd5 {[%clk 0:02:58]}  cxd5 {[%clk 0:00:51]} 7. Nc3 {[%clk 0:02:59]}  Nc6 {[%clk 0:00:51]} 8. d3 {[%clk 0:02:59]}  O-O {[%clk 0:00:51]} 9. Bg5 {[%clk 0:02:58]}  h6 {[%clk 0:00:50]} 10. Bf4 {[%clk 0:02:58]}  g5 {[%clk 0:00:49]} 11. Bd2 {[%clk 0:02:57]}  e5 {[%clk 0:00:49]} 12. e4 {[%clk 0:02:56]}  d4 {[%clk 0:00:49]} 13. Ne2 {[%clk 0:02:54]}  Be6 {[%clk 0:00:48]} 14. b3 {[%clk 0:02:47]}  Nd7 {[%clk 0:00:48]} 15. Rc1 {[%clk 0:02:46]}  f6 {[%clk 0:00:48]} 16. Ne1 {[%clk 0:02:44]}  Qe7 {[%clk 0:00:48]} 17. f4 {[%clk 0:02:44]}  Rfc8 {[%clk 0:00:48]} 18. f5 {[%clk 0:02:37]}  Bf7 {[%clk 0:00:47]} 19. Nf3 {[%clk 0:02:33]}  Qa3 {[%clk 0:00:47]} 20. Rc2 {[%clk 0:02:26]}  Nb4 {[%clk 0:00:47]} 21. Bxb4 {[%clk 0:02:25]}  Qxb4 {[%clk 0:00:45]} 22. Nc1 {[%clk 0:02:25]}  Bf8 {[%clk 0:00:40]} 23. Rff2 {[%clk 0:02:25]}  Qa5 {[%clk 0:00:38]} 24. h4 {[%clk 0:02:20]}  Ba3 {[%clk 0:00:32]} 25. hxg5 {[%clk 0:02:18]}  hxg5 {[%clk 0:00:33]} 26. g4 {[%clk 0:02:05]}  Nb6 {[%clk 0:00:32]} 27. Bf1 {[%clk 0:02:02]}  Rc3 {[%clk 0:00:24]} 28. Nd2 {[%clk 0:01:42]}  Rxc2 {[%clk 0:00:23]} 29. Qxc2 {[%clk 0:01:42]}  Rc8 {[%clk 0:00:22]} 30. Nc4 {[%clk 0:01:43]}  Bxc1 {[%clk 0:00:20]} 31. Qxc1 {[%clk 0:01:44]}  Nxc4 {[%clk 0:00:19]} 32. dxc4 {[%clk 0:01:37]}  b5 {[%clk 0:00:20]} 33. c5 {[%clk 0:01:30]}  b4 {[%clk 0:00:17]} 34. Rc2 {[%clk 0:01:30]}  Rc6 {[%clk 0:00:16]} 35. Bd3 {[%clk 0:01:22]}  Qc7 {[%clk 0:00:14]} 36. Bb5 {[%clk 0:01:19]}  Kg7 {[%clk 0:00:11]} 37. Bxc6 {[%clk 0:01:20]}  Qxc6 {[%clk 0:00:12]} 38. Qe1 {[%clk 0:01:17]}  a5 {[%clk 0:00:08]} 39. Qe2 {[%clk 0:01:15]}  Be8 {[%clk 0:00:06]} 40. Kf2 {[%clk 0:01:08]}  Bd7 {[%clk 0:00:05]} 41. Kf3 {[%clk 0:01:08]}  Bc8 {[%clk 0:00:05]} 42. Qc4 {[%clk 0:00:48]}  Ba6 {[%clk 0:00:03]} 43. Qd5 {[%clk 0:00:46]} 1-0


[Site "https://www.chess.com"]

[Event "Titled Tuesday Blitz November 29 Late 2022"]
[White "Rodriguez Santiago, Jaime"]
[Black "Estrada Nieto, Julian"]
[WhiteFideId "3100898"]
[BlackFideId "5101018"]
[WhiteElo "2025"]
[BlackElo "2221"]
[Result "0-1"]
[Round "10"]
[TimeControl "180+1"]
[Date "2022.11.30"]
[WhiteClock "0:00:20"]
[BlackClock "0:00:33"]

1. c4 {[%clk 0:03:00]}  e5 {[%clk 0:02:59]} 2. Nc3 {[%clk 0:03:01]}  Nf6 {[%clk 0:02:59]} 3. g3 {[%clk 0:03:01]}  d5 {[%clk 0:02:58]} 4. cxd5 {[%clk 0:03:00]}  Nxd5 {[%clk 0:02:59]} 5. Bg2 {[%clk 0:03:00]}  Nb6 {[%clk 0:03:00]} 6. e3 {[%clk 0:02:59]}  Be7 {[%clk 0:02:59]} 7. Nge2 {[%clk 0:03:00]}  O-O {[%clk 0:02:58]} 8. O-O {[%clk 0:03:00]}  Nc6 {[%clk 0:02:57]} 9. f4 {[%clk 0:03:01]}  f6 {[%clk 0:02:56]} 10. f5 {[%clk 0:03:00]}  g6 {[%clk 0:02:46]} 11. g4 {[%clk 0:02:58]}  gxf5 {[%clk 0:02:37]} 12. gxf5 {[%clk 0:02:57]}  Kh8 {[%clk 0:02:37]} 13. d4 {[%clk 0:02:47]}  Rg8 {[%clk 0:02:33]} 14. Kh1 {[%clk 0:02:45]}  Bd6 {[%clk 0:02:19]} 15. d5 {[%clk 0:02:24]}  Ne7 {[%clk 0:02:19]} 16. e4 {[%clk 0:02:25]}  Bc5 {[%clk 0:02:14]} 17. Rf3 {[%clk 0:02:23]}  Bd7 {[%clk 0:02:08]} 18. Rh3 {[%clk 0:02:12]}  Nxf5 {[%clk 0:01:53]} 19. exf5 {[%clk 0:02:01]}  Bxf5 {[%clk 0:01:53]} 20. Rh6 {[%clk 0:01:55]}  Bf8 {[%clk 0:01:41]} 21. Rh4 {[%clk 0:01:45]}  Bg4 {[%clk 0:01:38]} 22. Qd3 {[%clk 0:01:38]}  f5 {[%clk 0:01:38]} 23. Rxg4 {[%clk 0:01:15]}  fxg4 {[%clk 0:01:28]} 24. Be4 {[%clk 0:01:12]}  Qh4 {[%clk 0:01:25]} 25. Ng3 {[%clk 0:01:00]}  Bc5 {[%clk 0:01:19]} 26. Bd2 {[%clk 0:00:52]}  Raf8 {[%clk 0:01:16]} 27. Be3 {[%clk 0:00:42]}  Bxe3 {[%clk 0:01:09]} 28. Qxe3 {[%clk 0:00:41]}  Nc4 {[%clk 0:01:09]} 29. Qe2 {[%clk 0:00:41]}  Nd6 {[%clk 0:01:06]} 30. Bg2 {[%clk 0:00:40]}  Rg5 {[%clk 0:00:51]} 31. Nce4 {[%clk 0:00:23]}  Nf5 {[%clk 0:00:38]} 32. Re1 {[%clk 0:00:20]}  Nd4 {[%clk 0:00:35]} 33. Qe3 {[%clk 0:00:20]}  Nf3 {[%clk 0:00:34]} 34. Nxg5 {[%clk 0:00:20]}  Qxh2# {[%clk 0:00:33]} 0-1


[Site "https://www.chess.com"]

[Event "Titled Tuesday Blitz November 29 Late 2022"]
[White "Rorrer, Grayson"]
[Black "Chigaev, Maksim"]
[WhiteFideId "30944996"]
[BlackFideId "4108116"]
[WhiteElo "2130"]
[BlackElo "2541"]
[Result "0-1"]
[Round "10"]
[TimeControl "180+1"]
[Date "2022.11.30"]
[WhiteClock "0:01:49"]
[BlackClock "0:01:22"]

1. e4 {[%clk 0:03:00]}  c5 {[%clk 0:02:59]} 2. Nf3 {[%clk 0:03:01]}  e6 {[%clk 0:03:00]} 3. d4 {[%clk 0:03:01]}  cxd4 {[%clk 0:03:01]} 4. Nxd4 {[%clk 0:03:01]}  Nf6 {[%clk 0:03:01]} 5. Nc3 {[%clk 0:03:01]}  Nc6 {[%clk 0:03:02]} 6. Be2 {[%clk 0:02:57]}  Be7 {[%clk 0:02:58]} 7. O-O {[%clk 0:02:56]}  Qc7 {[%clk 0:02:58]} 8. Be3 {[%clk 0:02:56]}  a6 {[%clk 0:02:58]} 9. f4 {[%clk 0:02:55]}  d6 {[%clk 0:02:52]} 10. Bf3 {[%clk 0:02:54]}  O-O {[%clk 0:02:52]} 11. Qe2 {[%clk 0:02:53]}  Nxd4 {[%clk 0:02:49]} 12. Bxd4 {[%clk 0:02:54]}  e5 {[%clk 0:02:49]} 13. Be3 {[%clk 0:02:53]}  Be6 {[%clk 0:02:38]} 14. Rfd1 {[%clk 0:02:52]}  exf4 {[%clk 0:02:33]} 15. Bxf4 {[%clk 0:02:52]}  Nd7 {[%clk 0:02:34]} 16. Kh1 {[%clk 0:02:51]}  Rac8 {[%clk 0:02:32]} 17. Nd5 {[%clk 0:02:39]}  Bxd5 {[%clk 0:02:31]} 18. exd5 {[%clk 0:02:38]}  Ne5 {[%clk 0:02:26]} 19. Bxe5 {[%clk 0:02:25]}  dxe5 {[%clk 0:02:27]} 20. Be4 {[%clk 0:02:23]}  f5 {[%clk 0:02:03]} 21. d6 {[%clk 0:02:23]}  Bxd6 {[%clk 0:02:03]} 22. Bd5+ {[%clk 0:02:14]}  Kh8 {[%clk 0:02:03]} 23. c4 {[%clk 0:02:12]}  e4 {[%clk 0:01:56]} 24. h3 {[%clk 0:02:11]}  b6 {[%clk 0:01:38]} 25. a3 {[%clk 0:02:07]}  Qe7 {[%clk 0:01:38]} 26. Kg1 {[%clk 0:01:53]}  Qe5 {[%clk 0:01:36]} 27. Kf1 {[%clk 0:01:54]}  Bc5 {[%clk 0:01:33]} 28. b4 {[%clk 0:01:53]}  Bd4 {[%clk 0:01:22]} 29. Ra2 {[%clk 0:01:53]}  Qf4+ {[%clk 0:01:21]} 30. Ke1 {[%clk 0:01:50]}  Bc3+ {[%clk 0:01:22]} 31. Rad2 {[%clk 0:01:49]}  e3 {[%clk 0:01:22]} 0-1


[Site "https://www.chess.com"]

[Event "Titled Tuesday Blitz November 29 Late 2022"]
[White "Savic, Miroslav"]
[Black "Sariego Figueredo, Wilfredo"]
[WhiteFideId "14508494"]
[BlackFideId "3500080"]
[WhiteElo "2209"]
[BlackElo "2309"]
[Result "0-1"]
[Round "10"]
[TimeControl "180+1"]
[Date "2022.11.30"]
[WhiteClock "0:00:02"]
[BlackClock "0:00:03"]

1. Nf3 {[%clk 0:02:50]}  c5 {[%clk 0:02:59]} 2. c4 {[%clk 0:02:49]}  Nf6 {[%clk 0:02:57]} 3. Nc3 {[%clk 0:02:48]}  g6 {[%clk 0:02:56]} 4. g3 {[%clk 0:02:48]}  Bg7 {[%clk 0:02:56]} 5. Bg2 {[%clk 0:02:49]}  Nc6 {[%clk 0:02:54]} 6. O-O {[%clk 0:02:49]}  O-O {[%clk 0:02:54]} 7. d4 {[%clk 0:02:49]}  cxd4 {[%clk 0:02:51]} 8. Nxd4 {[%clk 0:02:49]}  Nxd4 {[%clk 0:02:42]} 9. Qxd4 {[%clk 0:02:47]}  a6 {[%clk 0:02:42]} 10. b3 {[%clk 0:02:46]}  Qa5 {[%clk 0:02:22]} 11. Bb2 {[%clk 0:02:41]}  d6 {[%clk 0:02:08]} 12. a3 {[%clk 0:02:19]}  Rb8 {[%clk 0:01:59]} 13. b4 {[%clk 0:02:13]}  Qc7 {[%clk 0:01:58]} 14. Rac1 {[%clk 0:02:09]}  Be6 {[%clk 0:01:40]} 15. Nd5 {[%clk 0:02:09]}  Bxd5 {[%clk 0:01:40]} 16. cxd5 {[%clk 0:02:07]}  Qd7 {[%clk 0:01:40]} 17. e4 {[%clk 0:01:44]}  Rfc8 {[%clk 0:01:20]} 18. h3 {[%clk 0:01:08]}  b5 {[%clk 0:01:00]} 19. Kh2 {[%clk 0:00:53]}  Ng4+ {[%clk 0:00:57]} 20. hxg4 {[%clk 0:00:51]}  Bxd4 {[%clk 0:00:57]} 21. Bxd4 {[%clk 0:00:51]}  Rxc1 {[%clk 0:00:57]} 22. Rxc1 {[%clk 0:00:49]}  Rc8 {[%clk 0:00:57]} 23. Rxc8+ {[%clk 0:00:38]}  Qxc8 {[%clk 0:00:58]} 24. f3 {[%clk 0:00:35]}  Qc4 {[%clk 0:00:54]} 25. Bb6 {[%clk 0:00:32]}  Qb3 {[%clk 0:00:51]} 26. Ba5 {[%clk 0:00:31]}  Qxa3 {[%clk 0:00:51]} 27. Kh3 {[%clk 0:00:27]}  f6 {[%clk 0:00:48]} 28. f4 {[%clk 0:00:25]}  g5 {[%clk 0:00:45]} 29. f5 {[%clk 0:00:19]}  Qe3 {[%clk 0:00:41]} 30. Kh2 {[%clk 0:00:19]}  Qe2 {[%clk 0:00:39]} 31. Kh3 {[%clk 0:00:19]}  h5 {[%clk 0:00:37]} 32. Bd8 {[%clk 0:00:15]}  Qxg4+ {[%clk 0:00:33]} 33. Kh2 {[%clk 0:00:15]}  Kf7 {[%clk 0:00:34]} 34. Bb6 {[%clk 0:00:09]}  h4 {[%clk 0:00:32]} 35. Bf2 {[%clk 0:00:08]}  hxg3+ {[%clk 0:00:28]} 36. Bxg3 {[%clk 0:00:08]}  Qh5+ {[%clk 0:00:25]} 37. Kg1 {[%clk 0:00:08]}  Qd1+ {[%clk 0:00:25]} 38. Kh2 {[%clk 0:00:08]}  Qb1 {[%clk 0:00:25]} 39. e5 {[%clk 0:00:07]}  fxe5 {[%clk 0:00:23]} 40. f6 {[%clk 0:00:04]}  exf6 {[%clk 0:00:23]} 41. Bh3 {[%clk 0:00:05]}  Qxb4 {[%clk 0:00:21]} 42. Be6+ {[%clk 0:00:06]}  Ke7 {[%clk 0:00:21]} 43. Kh3 {[%clk 0:00:05]}  a5 {[%clk 0:00:18]} 44. Kg2 {[%clk 0:00:05]}  a4 {[%clk 0:00:18]} 45. Be1 {[%clk 0:00:06]}  Qxe1 {[%clk 0:00:17]} 46. Kf3 {[%clk 0:00:07]}  a3 {[%clk 0:00:16]} 47. Kg4 {[%clk 0:00:07]}  a2 {[%clk 0:00:16]} 48. Kh5 {[%clk 0:00:08]}  a1=Q {[%clk 0:00:13]} 49. Kh6 {[%clk 0:00:08]}  Qa8 {[%clk 0:00:13]} 50. Kg7 {[%clk 0:00:06]}  Qf8+ {[%clk 0:00:09]} 51. Kg6 {[%clk 0:00:06]}  Qe4+ {[%clk 0:00:06]} 52. Bf5 {[%clk 0:00:03]}  Qg8+ {[%clk 0:00:06]} 53. Kh6 {[%clk 0:00:03]}  Qh1+ {[%clk 0:00:03]} 54. Bh3 {[%clk 0:00:02]}  Qxh3# {[%clk 0:00:03]} 0-1


[Site "https://www.chess.com"]